Workbook

Sheet Instrucciones
A1: Centro Nacional de Control del Gas Natural
A2: Unidad de Gestión Técnica y Planeación
A3: Dirección Ejecutiva de Planeación
A5: CALCULADORA DE COORDENADAS GEOGRÁFICAS A DECIMALES
A6: Instrucciones:
A7: Introduzca las coordenadas en grados, minutos y segundos que desea convertir.
A8: El primer renglón de la calculadora corresponde a la latitud o coordenadas Y.
A9: El segundo renglón de la calculadora corresponde a la longitud o coordenadas X.
A10: En la columna de Grados Decimales obtendrá la conversión a coordenadas decimales.
A12: CALCULADORA DE PRECIOS DE COMBUSTIBLES SUSTITUTOS
A13: Instrucciones:
A14: La calculadora de precios se compone de 3 secciones:
A15: 1- La primera sección contiene campos, en color blanco, que permiten introducir los valores a convertir.
A16: 2- La segunda sección muestra en los campos en color gris los cálculos realizados.
A17: 3- La tercera sección grafica la comparación de costos entre el gas natural y el combustible seleccionado. Además se presenta la entidad seleccionada indicando la región a la que pertenece el punto de extracción.
A18: El campo "Fecha" despliega una lista de fechas para seleccionar.
A19: El campo "Combustible" despliega una lista con el combustible a elegir. Los disponibles son: Combustóleo, Diésel, Gas LP por kilogramo, Gas LP por litro, Gasolina Premium y Gasolina Magna.
A20: En el campo "Consumo de combustible" se introduce la cantidad de combustible a transformar.
A21: En el campo "Unidad de tiempo" podrá seleccionar de una lista desplegable, la periodicidad de su consumo. Ésta sirve para calcular el consumo diario que se solicita en los Formatos de Manifestación de Interés.
A22: El campo "Tipo de cambio" determina el tipo de cambio con el que se calculan los escenarios, se tiene como valor predeterminado el Índice de Referencia Nacional de Precios de Gas Natural para el mes inmediato anterior al seleccionado.
A23: El campo "Seleccionar entidad de extracción", despliega una lista con las entidades federativas para poder calcular el costo por consumo de combustible y de transporte.
A24: El campo "Seleccionar punto de inyección", despliega una lista con los puntos de inyección disponibles dada la entidad federativa de extracción.

Sheet Coordenadas
A1: Centro Nacional de Control del Gas Natural
A2: Unidad de Gestión Técnica y Planeación
A3: Dirección Ejecutiva de Planeación
A5: CALCULADORA DE COORDENADAS GEOGRÁFICAS A DECIMALES
E6: Latitud | F6: Longitud
A7: Favor de introducir las coordenadas en las casillas blancas: | E7: 20°42'58.0 | F7: 100°19'26.5
B8: Grados | C8: Minutos | D8: Segundos | E8: Orientación | F8: Grados Decimales
A9: Latitud | B9: =MID(E7,1,SEARCH("°",E7)-1) -> 20 | C9: =MID(E7,SEARCH("°",E7)+1,SEARCH("'",E7)-SEARCH("°",E7)-1) -> 42 | D9: =MID(E7,SEARCH("'",E7)+1,4) -> 58.0 | E9: Norte N | F9: =B9+C15+D15 -> 20.71611111
A11: Longitud | B11: =MID(F7,1,SEARCH("°",F7)-1) -> 100 | C11: =MID(F7,SEARCH("°",F7)+1,SEARCH("'",F7)-SEARCH("°",F7)-1) -> 19 | D11: =MID(F7,SEARCH("'",F7)+1,4) -> 26.5 | E11: Oeste W | F11: =-(B11+C16+D16) -> -100.3240278
A13: Dirección | B13: =VBAProject.Módulo3.ReverseGeocode(F9,F11) -> PM8G+8V, 76266 Dolores, Qro., México
C15: =C9/60 -> 0.7 | D15: =D9/3600 -> 0.01611111111
C16: =C11/60 -> 0.3166666667 | D16: =D11/3600 -> 0.007361111111

Sheet Combustibles
A1: Centro Nacional de Control del Gas Natural
A2: Unidad de Gestión Técnica y Planeación
A3: Dirección Ejecutiva de Planeación
A5: CALCULADORA DE PRECIOS DE COMBUSTIBLES SUSTITUTOS
A6: Primer sección | D6: Tercera sección
A8: Fecha | B8: 2023-03-01
A10: Combustible | B10: Combustoleo
A12: Consumo de combustible | B12: 43 | C12: =VLOOKUP(B10,Precios_!$C$4:$F$509,4,0) -> Lt
A14: Unidad de tiempo | B14: Día
A16: Tipo de cambio | B16: =VLOOKUP(B8,Tabla2[],5,FALSE) -> 18.403 | C16: Pesos por Dólar
C17: =IF(B14="Mes",30,IF(B14="Día",1,IF(B14="Semana",7, IF(B14="Quincena",15,IF(B14="Año",365,0))))) -> 1
B18: Por unidad de Combustible | C18: Equivalente en energía
A19: MMBtu diario | B19: =VLOOKUP(B10,'Datos y cálculos'!$A$2:$C$9,3,0) -> 0.04228524 | C19: =B19*B12/C17 -> 1.81826532
A20: GJ diario | B20: =VLOOKUP(B10,'Datos y cálculos'!$A$1:$C$9,2,0) -> 0.04007867 | C20: =B20*B12/C17 -> 1.72338281
A22: Seleccionar entidad de extracción | B22: Chihuahua | C22: =VLOOKUP(B22,Regiones!$BD$9:$BE$40,2,FALSE) -> Región II
A23: Seleccionar punto de inyección | B23: V067
A24: Precio de inyección | B24: =SUMIFS(Tabla2[Precio],Tabla2[Fecha],Combustibles!B8:B8,Tabla2[Combustible],Combustibles!B10:B10,Tabla2[Estado],Combustibles!B22) -> 7.15
A25: Precio de transporte por GJ | B25: =IFERROR(VLOOKUP(VLOOKUP(B23,Regiones!$C$2:$D$25,2,0)&VLOOKUP(Combustibles!B22,Regiones!$O$2:$Q$34,3,0),Tarifas!D2:F127,3,0), "Sin ruta SISTRANGAS") -> Sin ruta SISTRANGAS
A26: Segunda sección
B27: =+$B$10 -> Combustoleo | C27: Gas natural
A28: USD/MMBtu | B28: =(1/B19)/SUMIFS(Tabla2[Precio],Tabla2[Fecha],Combustibles!B8,Tabla2[Estado],Combustibles!B22,Tabla2[Combustible],Combustibles!B27)*Combustibles!B16 -> 60.86866608 | C28: =SUMIFS(Tabla2[Precio],Tabla2[Estado],Combustibles!B22,Tabla2[Fecha],Combustibles!B8,Tabla2[Combustible],"Usd Mmbtu Ipgn") -> 7.15
A30: Pesos/GJ | B30: =(1/B20)*SUMIFS(Tabla2[Precio],Tabla2[Fecha],Combustibles!B8,Tabla2[Estado],Combustibles!B22,Tabla2[Combustible],Combustibles!B27) -> 178.3991335 | C30: =SUMIFS(Tabla2[Precio],Tabla2[Estado],Combustibles!B22,Tabla2[Fecha],Combustibles!B8,Tabla2[Combustible],"Mxn Gj Ipgn") -> 40.8828
A32: Costo estimado diario total USD | B32: =(B28*(B12/C17)*B19) -> 110.6753846 | C32: =C28*(B12/C17)*B19 -> 13.00059704
A34: Costo estimado diario total Pesos | B34: =(B30*(B12/C17)*B20) -> 307.45 | C34: =C30*(B12/C17)*B20 -> 70.45671474
A36: Diferencia % respecto al gas natural | B36: Seleccione un valor de la lista
A38: Costo estimado diario de transporte | C38: =IFERROR(B25*C20, "Ruta sin tarifa") -> Ruta sin tarifa
A40: Costo estimado diario total | B40: =B38+B34 -> 307.45 | C40: =IFERROR(C38+C34, C34) -> 70.45671474
A42: Diferencia % respecto al gas natural | B42: =+IFERROR(($B$40/$C$40)-1, "Sin gas natural disponible") -> 3.363672094
A44: Vinculo a la herramienta | B44: Herramienta de Apoyo

Sheet Regiones (hidden)
A1: Entidad | B1: IPGN | C1: PUNTO DE INYECCIÓN | E1: PUNTO DE INYECCIÓN | F1: LATITUD | G1: LONGITUD | H1: PRECIO_REFERENCIA | I1: estado | J1: #ZONA_ZONA_INYEC | K1: Región_inyec | N1: #ZONA_ZONA_EXT | O1: estado_extr | R1: #ZONA_ZONA_INY | S1: #ZONA_ZONA_EXT | U1: Entidad | V1: IPGN | AA1: =INDIRECTO(SUSTITUIR(X4," ","_"))
A2: Aguascalientes | B2: Región IV | C2: V024 | D2: 8 | E2: CACTUS100 | F2: 17.91626849 | G2: -93.15765409 | H2: IPGN 6 | I2: Chiapas | J2: SUR | K2: Región VI | L2: 8 | M2: 1 | N2: NOROESTE | O2: Chihuahua | P2: Región II | Q2: 1 | R2: 3. NORESTE | S2: 1. NOROESTE | U2: Aguascalientes | V2: Región IV
A3: Baja California | B3: Región I | C3: V025 | D3: 8 | E3: CACTUSNVOPMX | F3: 17.91626849 | G3: -93.15765409 | H3: IPGN 6 | I3: Chiapas | J3: SUR | K3: Región VI | L3: 8 | M3: 1 | N3: NOROESTE | O3: Durango | P3: Región II | Q3: 1 | R3: 3. NORESTE | S3: 2. NORTE CENTRO | U3: Baja California | V3: Región I | X3: Entidad | Y3: Inyección | Z3: Región
A4: Baja California Sur | B4: NA | C4: V028 | D4: 3 | E4: CULEBRA | F4: 25.83344732 | G4: -99.02090289 | H4: IPGN 3 | I4: Nuevo León | J4: NORESTE | K4: Región III | L4: 3 | M4: 1 | N4: NOROESTE | O4: Coahuila | P4: Región II | Q4: 1 | R4: 3. NORESTE | S4: 3. NORESTE | U4: Baja California Sur | V4: NA | X4: Tabasco | Y4: Región VI | Z4: Cpg_Pozarica
A5: Campeche | B5: Región VI | C5: V030 | D5: 1 | E5: GLORIADIOS | F5: 31.545652 | G5: -106.251284 | H5: Waha | I5: Chihuahua | J5: NOROESTE | K5: Región II | L5: 1 | M5: 2 | N5: NORTE CENTRO | O5: Coahuila | P5: Región II | Q5: 2 | R5: 3. NORESTE | S5: 4. TRONCAL | U5: Campeche | V5: Región VI
A6: Chiapas | B6: Región VI | C6: V032 | D6: 3 | E6: IMPCORAL | F6: 26.314455 | G6: -98.743919 | H6: HSC | I6: Tamaulipas | J6: NORESTE | K6: Región III | L6: 3 | M6: 2 | N6: NORTE CENTRO | O6: Chihuahua | P6: Región II | Q6: 2 | R6: 3. NORESTE | S6: 5. CENTRO | U6: Chiapas | V6: Región VI
A7: Chihuahua | B7: Región II | C7: V033 | D7: 3 | E7: IMPTENNESSEE | F7: 26.085947 | G7: -98.26468 | H7: HSC | I7: Tamaulipas | J7: NORESTE | K7: Región III | L7: 3 | M7: 2 | N7: NORTE CENTRO | O7: Durango | P7: Región II | Q7: 2 | R7: 3. NORESTE | S7: 6. OCCIDENTE | U7: Chihuahua | V7: Región II
A8: Ciudad de México | B8: Región V | C8: V034 | D8: 3 | E8: IMPTETCO | F8: 26.086008 | G8: -98.264707 | H8: HSC | I8: Tamaulipas | J8: NORESTE | K8: Región III | L8: 3 | M8: 3 | N8: NORESTE | O8: Nuevo León | P8: Región III | Q8: 3 | R8: 3. NORESTE | S8: 7. GOLFO | U8: Ciudad de México | V8: Región V
A9: Coahuila | B9: Región II | C9: V036 | D9: 3 | E9: INYMONCLOVA | F9: 27.05042136 | G9: -101.3721605 | H9: IPGN 2 | I9: Coahuila | J9: NORESTE | K9: Región II | L9: 3 | M9: 3 | N9: NORESTE | O9: Tamaulipas | P9: Región III | Q9: 3 | R9: 4. TRONCAL | S9: 3. NORESTE | U9: Coahuila | V9: Región II | W9: Aguascalientes | X9: Baja California | Y9: Baja California Sur | Z9: Campeche | AA9: Chiapas | AB9: Chihuahua | AC9: Ciudad de México | AD9: Coahuila | AE9: Colima | AF9: Durango | AG9: Guanajuato | AH9: Guerrero | AI9: Hidalgo | AJ9: Jalisco | AK9: Estado de México | AL9: Michoacán | AM9: Morelos | AN9: Nayarit | AO9: Nuevo León | AP9: Oaxaca | AQ9: Puebla | AR9: Querétaro | AS9: Quintana Roo | AT9: San Luis Potosí | AU9: Sinaloa | AV9: Sonora | AW9: Tabasco | AX9: Tamaulipas | AY9: Tlaxcala | AZ9: Veracruz | BA9: Yucatán | BB9: Zacatecas | BD9: Aguascalientes | BE9: Región IV
A10: Colima | B10: Región IV | C10: V037 | D10: 3 | E10: KMMTYINY | F10: 26.507706 | G10: -99.112679 | H10: Henry Hub | I10: Tamaulipas | J10: NORESTE | K10: Región III | L10: 3 | M10: 3 | N10: NORESTE | O10: Coahuila | P10: Región II | Q10: 3 | R10: 4. TRONCAL | S10: 4. TRONCAL | U10: Colima | V10: Región IV | W10: Región IV | X10: Región I | Y10: Sin gas | Z10: Región VI | AA10: Región VI | AB10: Región II | AC10: Región V | AD10: Región II | AE10: Región IV | AF10: Región II | AG10: Región V | AH10: Región V | AI10: Región V | AJ10: Región IV | AK10: Región V | AL10: Región V | AM10: Región V | AN10: Sin gas | AO10: Región III | AP10: Región VI | AQ10: Región V | AR10: Región V | AS10: Región VI | AT10: Región V | AU10: Región I | AV10: Región I | AW10: Región VI | AX10: Región III | AY10: Región V | AZ10: Región VI | BA10: Región VI | BB10: Región IV | BD10: Baja California | BE10: Región I
A11: Durango | B11: Región II | C11: PEPCOCUITE | D11: 7 | E11: PEPCOCUITE | F11: 19.146683 | G11: -96.184413 | H11: IPGN 6 | I11: Veracruz | J11: GOLFO | K11: Región VI | L11: 7 | M11: 4 | N11: TRONCAL | O11: Tamaulipas | P11: Región III | Q11: 4 | R11: 4. TRONCAL | S11: 5. CENTRO | U11: Durango | V11: Región II | BD11: Baja California Sur | BE11: Sin gas
A12: Guanajuato | B12: Región V | C12: V042 | D12: 7 | E12: PLAYUELA | F12: 19.00037185 | G12: -96.09837156 | H12: IPGN 6 | I12: Veracruz | J12: GOLFO | K12: Región VI | L12: 7 | M12: 4 | N12: TRONCAL | O12: Veracruz | P12: Región VI | Q12: 4 | R12: 4. TRONCAL | S12: 6. OCCIDENTE | U12: Guanajuato | V12: Región V | BD12: Campeche | BE12: Región VI
A13: Guerrero | B13: Región V | C13: V045 | D13: 7 | E13: PEPMENDOZA | F13: 18.83555093 | G13: -96.97478935 | H13: IPGN 6 | I13: Veracruz | J13: GOLFO | K13: Región VI | L13: 7 | M13: 5 | N13: CENTRO | O13: Veracruz | P13: Región VI | Q13: 5 | R13: 4. TRONCAL | S13: 7. GOLFO | U13: Guerrero | V13: Región V | BD13: Chiapas | BE13: Región VI
A14: Hidalgo | B14: Región V | C14: V051 | D14: 5 | E14: RAUDAL | F14: 20.947988 | G14: -97.623894 | H14: IPGN 6 | I14: Veracruz | J14: CENTRO | K14: Región VI | L14: 5 | M14: 5 | N14: CENTRO | O14: Tlaxcala | P14: Región V | Q14: 5 | R14: 1. NOROESTE | S14: 1. NOROESTE | U14: Hidalgo | V14: Región V | BD14: Chihuahua | BE14: Región II
A15: Jalisco | B15: Región IV | C15: V055 | D15: 4 | E15: LNGALTINY | F15: 22.492016 | G15: -97.895809 | H15: GCM | I15: Tamaulipas | J15: TRONCAL | K15: Región III | L15: 4 | M15: 5 | N15: CENTRO | O15: Hidalgo | P15: Región V | Q15: 5 | R15: 1. NOROESTE | S15: 2. NORTE CENTRO | U15: Jalisco | V15: Región IV | W15: Inyección | BD15: Ciudad de México | BE15: Región V
A16: Estado de México | B16: Región V | C16: V056 | D16: 4 | E16: CAMPONEJO | F16: 23.7923946 | G16: -98.09254773 | H16: IPGN 3 | I16: Tamaulipas | J16: TRONCAL | K16: Región III | L16: 4 | M16: 5 | N16: CENTRO | O16: Estado de México | P16: Región V | Q16: 5 | R16: 1. NOROESTE | S16: 3. NORESTE | U16: Estado de México | V16: Región V | W16: Sin gas | X16: Región I | Y16: Región II | Z16: Región III | AA16: Región IV | AB16: Región V | AC16: Región VI | AE16: Región II | AF16: Región III | AG16: Región IV | AH16: Región V | AI16: Región VI | BD16: Coahuila | BE16: Región II
A17: Michoacán | B17: Región V | C17: V059 | D17: 4 | E17: MAREOGRAFO | F17: 25.53538117 | G17: -98.88691654 | H17: IPGN 3 | I17: Nuevo León | J17: TRONCAL | K17: Región III | L17: 4 | M17: 5 | N17: CENTRO | O17: Puebla | P17: Región V | Q17: 5 | R17: 5. CENTRO | S17: 4. TRONCAL | U17: Michoacán | V17: Región V | W17: NA | X17: NA | Y17: V030 | Z17: V028 | AA17: V918 | AB17: V062 | AC17: V024 | AE17: V030 | AF17: V028 | AG17: V918 | AH17: V062 | AI17: V024 | BD17: Colima | BE17: Región IV
A18: Morelos | B18: Región V | C18: V061 | D18: 3 | E18: RAMONES | F18: 26.314455 | G18: -98.743919 | H18: Agua Dulce | I18: Tamaulipas | J18: NORESTE | K18: Región III | L18: 3 | M18: 5 | N18: CENTRO | O18: Guanajuato | P18: Región V | Q18: 5 | R18: 5. CENTRO | S18: 5. CENTRO | U18: Morelos | V18: Región V | Y18: V036 | Z18: V032 | AC18: V025 | AE18: V036 | AF18: V032 | AI18: V025 | BD18: Durango | BE18: Región II
A19: Nayarit | B19: NA | C19: V062 | D19: 3 | E19: IMPENERGT | F19: 27.898089 | G19: -99.893972 | H19: HSC | I19: Coahuila | J19: NORESTE | K19: Región II | L19: 3 | M19: 5 | N19: CENTRO | O19: Querétaro | P19: Región V | Q19: 5 | R19: 5. CENTRO | S19: 6. OCCIDENTE | U19: Nayarit | V19: NA | Y19: V067 | Z19: V033 | AC19: Pepcocuite | AE19: V067 | AF19: V033 | AI19: Pepcocuite | BD19: Guanajuato | BE19: Región V
A20: Nuevo León | B20: Región III | C20: V905 | D20: 5 | E20: CPG_POZARICA | F20: 20.52480561 | G20: -97.46144194 | H20: IPGN 6 | I20: Veracruz | J20: CENTRO | K20: Región VI | L20: 5 | M20: 5 | N20: CENTRO | O20: San Luis Potosí | P20: Región V | Q20: 5 | R20: 5. CENTRO | S20: 7. GOLFO | U20: Nuevo León | V20: Región III | Z20: V034 | AC20: V042 | AF20: V034 | AI20: V042 | BD20: Guerrero | BE20: Región V
A21: Oaxaca | B21: Región VI | C21: V907 | D21: 8 | E21: LAVENTA | F21: 18.09123006 | G21: -94.03533412 | H21: IPGN 6 | I21: Tabasco | J21: SUR | K21: Región VI | L21: 8 | M21: 6 | N21: OCCIDENTE | O21: Guanajuato | P21: Región V | Q21: 6 | R21: 6. OCCIDENTE | S21: 5. CENTRO | U21: Oaxaca | V21: Región VI | Z21: V037 | AC21: V045 | AF21: V037 | AI21: V045 | BD21: Hidalgo | BE21: Región V
A22: Puebla | B22: Región V | C22: V908 | D22: 7 | E22: MATAPIONCHE | F22: 18.82378237 | G22: -96.39680926 | H22: IPGN 6 | I22: Veracruz | J22: GOLFO | K22: Región VI | L22: 7 | M22: 6 | N22: OCCIDENTE | O22: Jalisco | P22: Región IV | Q22: 6 | R22: 6. OCCIDENTE | S22: 6. OCCIDENTE | U22: Puebla | V22: Región V | Z22: V055 | AC22: V051 | AF22: V055 | AI22: V051 | BD22: Jalisco | BE22: Región IV
A23: Querétaro | B23: Región V | C23: V062 | D23: 5 | E23: INY TGNH EL SAUZ | F23: 20.45054128 | G23: -100.1221941 | H23: IPGN 5 | I23: Querétaro | J23: CENTRO | K23: Región V | L23: 5 | M23: 6 | N23: OCCIDENTE | O23: Michoacán | P23: Región V | Q23: 6 | R23: 6. OCCIDENTE | S23: 7. GOLFO | U23: Querétaro | V23: Región V | Z23: V056 | AC23: V905 | AF23: V056 | AI23: V905 | BD23: Estado de México | BE23: Región V
A24: Quintana Roo | B24: Región VI | C24: V9B6 | D24: 3 | E24: INYBURGOS | F24: 26.00314143 | G24: -98.46203577 | H24: IPGN 3 | I24: Tamaulipas | J24: NORESTE | K24: Región III | L24: 3 | M24: 7 | N24: GOLFO | O24: Puebla | P24: Región V | Q24: 7 | R24: 7. GOLFO | S24: 5. CENTRO | U24: Quintana Roo | V24: Región VI | Z24: V059 | AC24: V907 | AF24: V059 | AI24: V907 | BD24: Michoacán | BE24: Región V
A25: San Luis Potosí | B25: Región V | C25: V918 | D25: 6 | E25: ELCASTILLOINY | F25: 20.50618409 | G25: -103.2226602 | H25: EAX | I25: Jalisco | J25: OCCIDENTE | K25: Región IV | L25: 6 | M25: 7 | N25: GOLFO | O25: Veracruz | P25: Región VI | Q25: 7 | R25: 7. GOLFO | S25: 6. OCCIDENTE | U25: San Luis Potosí | V25: Región V | Z25: V061 | AC25: V908 | AF25: V061 | AI25: V908 | BD25: Morelos | BE25: Región V
A26: Sinaloa | B26: Región I | C26: V067 | M26: 7 | N26: GOLFO | O26: Tlaxcala | P26: Región V | Q26: 7 | R26: 7. GOLFO | S26: 7. GOLFO | U26: Sinaloa | V26: Región I | Z26: V9B6 | AF26: V9B6 | BD26: Nayarit | BE26: Sin gas
A27: Sonora | B27: Región I | M27: 8 | N27: SUR | O27: Veracruz | P27: Región VI | Q27: 8 | R27: 7. GOLFO | S27: 8. SUR | U27: Sonora | V27: Región I | BD27: Nuevo León | BE27: Región III
A28: Tabasco | B28: Región VI | M28: 8 | N28: SUR | O28: Tabasco | P28: Región VI | Q28: 8 | R28: 8. SUR | S28: 5. CENTRO | U28: Tabasco | V28: Región VI | BD28: Oaxaca | BE28: Región VI
A29: Tamaulipas | B29: Región III | D29: Inyección | E29: =VLOOKUP(Combustibles!B23,Regiones!$C$2:$L$25,10,0) ->  | F29: =VLOOKUP(Combustibles!B23,Regiones!$C$2:$L$25,10,0)&VLOOKUP(Combustibles!C22,Regiones!$P$2:$Q$33,2,0) ->  | M29: 8 | N29: SUR | O29: Chiapas | P29: Región VI | Q29: 8 | R29: 8. SUR | S29: 6. OCCIDENTE | U29: Tamaulipas | V29: Región III | W29: =PROPER(Sin_gas) -> Na | Y29: =PROPER(Y17) -> V030 | Z29: =PROPER(Z17) -> V028 | AA29: =PROPER(Región_IV) -> V918 | AB29: =PROPER(Región_V) -> V062 | AC29: =PROPER(AC17) -> V024 | BD29: Puebla | BE29: Región V
A30: Tlaxcala | B30: Región V | D30: Extracción | E30: =VLOOKUP(Combustibles!C22,Regiones!$P$2:$Q$33,2,0) -> 1 | F30: =VLOOKUP(VLOOKUP(Combustibles!B23,Regiones!$C$2:$L$25,10,0)&VLOOKUP(Combustibles!C22,Regiones!$P$2:$Q$33,2,0),Tarifas!$D$2:$F$127,3,0) ->  | M30: 9 | N30: ISTMO | O30: Oaxaca | P30: Región VI | Q30: 9 | R30: 8. SUR | S30: 7. GOLFO | U30: Tlaxcala | V30: Región V | Y30: =PROPER(Y18) -> V036 | Z30: V032 | AC30: =PROPER(AC18) -> V025 | BD30: Querétaro | BE30: Región V
A31: Veracruz | B31: Región VI | M31: 4 | N31: TRONCAL | O31: Nuevo León | P31: Región III | Q31: 4 | R31: 8. SUR | S31: 8. SUR | U31: Veracruz | V31: Región VI | Y31: V067 | Z31: V033 | AC31: Pepcocuite | BD31: Quintana Roo | BE31: Región VI
A32: Yucatán | B32: Región VI | M32: 6 | N32: OCCIDENTE | O32: Querétaro | P32: Región V | Q32: 6 | R32: 8. SUR | S32: 9. ISTMO | U32: Yucatán | V32: Región VI | Z32: =PROPER(Z20) -> V034 | AC32: V042 | BD32: San Luis Potosí | BE32: Región V
A33: Zacatecas | B33: Región IV | M33: 7 | N33: GOLFO | O33: Oaxaca | P33: Región VI | Q33: 7 | U33: Zacatecas | V33: Región IV | Z33: V037 | AC33: V045 | BD33: Sinaloa | BE33: Región I
M34: 6 | N34: OCCIDENTE | O34: Chihuahua | P34: Región II | Q34: 6 | Z34: V055 | AC34: V051 | BD34: Sonora | BE34: Región I
Z35: V056 | AC35: V905 | BD35: Tabasco | BE35: Región VI
Z36: V059 | AC36: V907 | BD36: Tamaulipas | BE36: Región III
Z37: V061 | AC37: =PROPER(AC25) -> V908 | BD37: Tlaxcala | BE37: Región V
Z38: V9B6 | BD38: Veracruz | BE38: Región VI
BD39: Yucatán | BE39: Región VI
BD40: Zacatecas | BE40: Región IV

Sheet Tarifas (hidden)
B1: Punto de inyección | C1: Punto de extracción | E1: Base | F1: Peso/GJ
A2: =MID(B2,6,1) -> 1 | B2: Zona 1 | C2: Zona 1 | D2: =MID(B2,6,1)&MID(C2,6,2) -> 11 | E2: Firme | F2: 3.36825
A3: =MID(B3,6,1) -> 1 | B3: Zona 1 | C3: Zona 2 | D3: =MID(B3,6,1)&MID(C3,6,2) -> 12 | E3: Firme | F3: 4.27593
A4: 1 | B4: Zona 1 | C4: Zona 3 | D4: 13 | E4: Firme | F4: 8.78903
A5: 1 | B5: Zona 1 | C5: Zona 4 | D5: 14 | E5: Firme | F5: 12.32651
A6: 1 | B6: Zona 1 | C6: Zona 5 | D6: 15 | E6: Firme | F6: 18.93636
A7: 1 | B7: Zona 1 | C7: Zona 6 | D7: 16 | E7: Firme | F7: 22.34427
A8: 1 | B8: Zona 1 | C8: Zona 7 | D8: 17 | E8: Firme | F8: Sin tarifa
A9: 1 | B9: Zona 1 | C9: Zona 8 | D9: 18 | E9: Firme | F9: Sin tarifa
A10: 1 | B10: Zona 1 | C10: Zona 9 | D10: 19 | E10: Firme | F10: Sin tarifa
A11: 1 | B11: Zona 1 | C11: Zona 1 | D11: 11 | E11: Interrumpible | F11: 3.33456
A12: 1 | B12: Zona 1 | C12: Zona 2 | D12: 12 | E12: Interrumpible | F12: 4.23317
A13: 1 | B13: Zona 1 | C13: Zona 3 | D13: 13 | E13: Interrumpible | F13: 8.70114
A14: 1 | B14: Zona 1 | C14: Zona 4 | D14: 14 | E14: Interrumpible | F14: 12.20324
A15: 1 | B15: Zona 1 | C15: Zona 5 | D15: 15 | E15: Interrumpible | F15: 18.747
A16: 1 | B16: Zona 1 | C16: Zona 6 | D16: 16 | E16: Interrumpible | F16: 22.12083
A17: 1 | B17: Zona 1 | C17: Zona 7 | D17: 17 | E17: Interrumpible | F17: Sin tarifa
A18: 1 | B18: Zona 1 | C18: Zona 8 | D18: 18 | E18: Interrumpible | F18: Sin tarifa
A19: 1 | B19: Zona 1 | C19: Zona 9 | D19: 19 | E19: Interrumpible | F19: Sin tarifa
A20: 3 | B20: Zona 3 | C20: Zona 1 | D20: 31 | E20: Firme | F20: 8.78903
A21: 3 | B21: Zona 3 | C21: Zona 2 | D21: 32 | E21: Firme | F21: 4.6122
A22: 3 | B22: Zona 3 | C22: Zona 3 | D22: 33 | E22: Firme | F22: 3.70452
A23: 3 | B23: Zona 3 | C23: Zona 4 | D23: 34 | E23: Firme | F23: 7.242
A24: 3 | B24: Zona 3 | C24: Zona 5 | D24: 35 | E24: Firme | F24: 13.85186
A25: 3 | B25: Zona 3 | C25: Zona 6 | D25: 36 | E25: Firme | F25: 17.25977
A26: 3 | B26: Zona 3 | C26: Zona 7 | D26: 37 | E26: Firme | F26: 16.00712
A27: 3 | B27: Zona 3 | C27: Zona 8 | D27: 38 | E27: Firme | F27: 18.24942
A28: 3 | B28: Zona 3 | C28: Zona 9 | D28: 39 | E28: Firme | F28: Sin tarifa
A29: 3 | B29: Zona 3 | C29: Zona 1 | D29: 31 | E29: Interrumpible | F29: 870114
A30: 3 | B30: Zona 3 | C30: Zona 2 | D30: 32 | E30: Interrumpible | F30: 4.56608
A31: 3 | B31: Zona 3 | C31: Zona 3 | D31: 33 | E31: Interrumpible | F31: 3.66748
A32: 3 | B32: Zona 3 | C32: Zona 4 | D32: 34 | E32: Interrumpible | F32: 7016958
A33: 3 | B33: Zona 3 | C33: Zona 5 | D33: 35 | E33: Interrumpible | F33: 13.71334
A34: 3 | B34: Zona 3 | C34: Zona 6 | D34: 36 | E34: Interrumpible | F34: 17.08717
A35: 3 | B35: Zona 3 | C35: Zona 7 | D35: 37 | E35: Interrumpible | F35: 15.84705
A36: 3 | B36: Zona 3 | C36: Zona 8 | D36: 38 | E36: Interrumpible | F36: 18.066693
A37: 3 | B37: Zona 3 | C37: Zona 9 | D37: 39 | E37: Interrumpible | F37: Sin tarifa
A38: 4 | B38: Zona 4 | C38: Zona 1 | D38: 41 | E38: Firme | F38: 12.32651
A39: 4 | B39: Zona 4 | C39: Zona 2 | D39: 42 | E39: Firme | F39: 8.14968
A40: 4 | B40: Zona 4 | C40: Zona 3 | D40: 43 | E40: Firme | F40: 7.242
A41: 4 | B41: Zona 4 | C41: Zona 4 | D41: 44 | E41: Firme | F41: 2.7289
A42: 4 | B42: Zona 4 | C42: Zona 5 | D42: 45 | E42: Firme | F42: 9.33875
A43: 4 | B43: Zona 4 | C43: Zona 6 | D43: 46 | E43: Firme | F43: 12.74666
A44: 4 | B44: Zona 4 | C44: Zona 7 | D44: 47 | E44: Firme | F44: 11.49401
A45: 4 | B45: Zona 4 | C45: Zona 8 | D45: 48 | E45: Firme | F45: 13.73632
A46: 4 | B46: Zona 4 | C46: Zona 9 | D46: 49 | E46: Firme | F46: Sin tarifa
A47: 4 | B47: Zona 4 | C47: Zona 1 | D47: 41 | E47: Interrumpible | F47: 12.20324
A48: 4 | B48: Zona 4 | C48: Zona 2 | D48: 42 | E48: Interrumpible | F48: 8.06818
A49: 4 | B49: Zona 4 | C49: Zona 3 | D49: 43 | E49: Interrumpible | F49: 7.16958
A50: 4 | B50: Zona 4 | C50: Zona 4 | D50: 44 | E50: Interrumpible | F50: 2.70161
A51: 4 | B51: Zona 4 | C51: Zona 5 | D51: 45 | E51: Interrumpible | F51: 9.24536
A52: 4 | B52: Zona 4 | C52: Zona 6 | D52: 46 | E52: Interrumpible | F52: 12.6192
A53: 4 | B53: Zona 4 | C53: Zona 7 | D53: 47 | E53: Interrumpible | F53: 11.37907
A54: 4 | B54: Zona 4 | C54: Zona 8 | D54: 48 | E54: Interrumpible | F54: 13.59895
A55: 4 | B55: Zona 4 | C55: Zona 9 | D55: 49 | E55: Interrumpible | F55: Sin tarifa
A56: 5 | B56: Zona 5 | C56: Zona 1 | D56: 51 | E56: Firme | F56: Sin tarifa
A57: 5 | B57: Zona 5 | C57: Zona 2 | D57: 52 | E57: Firme | F57: 14.75953
A58: 5 | B58: Zona 5 | C58: Zona 3 | D58: 53 | E58: Firme | F58: 13.85186
A59: 5 | B59: Zona 5 | C59: Zona 4 | D59: 54 | E59: Firme | F59: 9.33875
A60: 5 | B60: Zona 5 | C60: Zona 5 | D60: 55 | E60: Firme | F60: 5.80127
A61: 5 | B61: Zona 5 | C61: Zona 6 | D61: 56 | E61: Firme | F61: 9.20919
A62: 5 | B62: Zona 5 | C62: Zona 7 | D62: 57 | E62: Firme | F62: 7.95654
A63: 5 | B63: Zona 5 | C63: Zona 8 | D63: 58 | E63: Firme | F63: 10.19884
A64: 5 | B64: Zona 5 | C64: Zona 9 | D64: 59 | E64: Firme | F64: Sin tarifa
A65: 5 | B65: Zona 5 | C65: Zona 1 | D65: 51 | E65: Interrumpible | F65: Sin tarifa
A66: 5 | B66: Zona 5 | C66: Zona 2 | D66: 52 | E66: Interrumpible | F66: 14.61194
A67: =MID(B67,6,1) -> 5 | B67: Zona 5 | C67: Zona 3 | D67: =MID(B67,6,1)&MID(C67,6,2) -> 53 | E67: Interrumpible | F67: 13.71334
A68: 5 | B68: Zona 5 | C68: Zona 4 | D68: 54 | E68: Interrumpible | F68: 9.24536
A69: 5 | B69: Zona 5 | C69: Zona 5 | D69: 55 | E69: Interrumpible | F69: 5.74326
A70: 5 | B70: Zona 5 | C70: Zona 6 | D70: 56 | E70: Interrumpible | F70: 9.11709
A71: 5 | B71: Zona 5 | C71: Zona 7 | D71: 57 | E71: Interrumpible | F71: 7.87697
A72: 5 | B72: Zona 5 | C72: Zona 8 | D72: 58 | E72: Interrumpible | F72: 10.09685
A73: 5 | B73: Zona 5 | C73: Zona 9 | D73: 59 | E73: Interrumpible | F73: Sin tarifa
A74: 6 | B74: Zona 6 | C74: Zona 1 | D74: 61 | E74: Firme | F74: Sin tarifa
A75: 6 | B75: Zona 6 | C75: Zona 2 | D75: 62 | E75: Firme | F75: Sin tarifa
A76: 6 | B76: Zona 6 | C76: Zona 3 | D76: 63 | E76: Firme | F76: 17.25977
A77: 6 | B77: Zona 6 | C77: Zona 4 | D77: 64 | E77: Firme | F77: 12.74666
A78: 6 | B78: Zona 6 | C78: Zona 5 | D78: 65 | E78: Firme | F78: 9.20919
A79: 6 | B79: Zona 6 | C79: Zona 6 | D79: 66 | E79: Firme | F79: 2.59933
A80: 6 | B80: Zona 6 | C80: Zona 7 | D80: 67 | E80: Firme | F80: 11.36445
A81: 6 | B81: Zona 6 | C81: Zona 8 | D81: 68 | E81: Firme | F81: 13.60675
A82: 6 | B82: Zona 6 | C82: Zona 9 | D82: 69 | E82: Firme | F82: Sin tarifa
A83: 6 | B83: Zona 6 | C83: Zona 1 | D83: 61 | E83: Interrumpible | F83: Sin tarifa
A84: 6 | B84: Zona 6 | C84: Zona 2 | D84: 62 | E84: Interrumpible | F84: Sin tarifa
A85: 6 | B85: Zona 6 | C85: Zona 3 | D85: 63 | E85: Interrumpible | F85: 17.08717
A86: 6 | B86: Zona 6 | C86: Zona 4 | D86: 64 | E86: Interrumpible | F86: 12.6192
A87: 6 | B87: Zona 6 | C87: Zona 5 | D87: 65 | E87: Interrumpible | F87: 9.11709
A88: 6 | B88: Zona 6 | C88: Zona 6 | D88: 66 | E88: Interrumpible | F88: 2.57334
A89: 6 | B89: Zona 6 | C89: Zona 7 | D89: 67 | E89: Interrumpible | F89: 11.2508
A90: 6 | B90: Zona 6 | C90: Zona 8 | D90: 68 | E90: Interrumpible | F90: 13.47068
A91: 6 | B91: Zona 6 | C91: Zona 9 | D91: 69 | E91: Interrumpible | F91: Sin tarifa
A92: 7 | B92: Zona 7 | C92: Zona 1 | D92: 71 | E92: Firme | F92: Sin tarifa
A93: 7 | B93: Zona 7 | C93: Zona 2 | D93: 72 | E93: Firme | F93: Sin tarifa
A94: 7 | B94: Zona 7 | C94: Zona 3 | D94: 73 | E94: Firme | F94: Sin tarifa
A95: 7 | B95: Zona 7 | C95: Zona 4 | D95: 74 | E95: Firme | F95: 11.49401
A96: 7 | B96: Zona 7 | C96: Zona 5 | D96: 75 | E96: Firme | F96: 7.95654
A97: 7 | B97: Zona 7 | C97: Zona 6 | D97: 76 | E97: Firme | F97: 11.36445
A98: 7 | B98: Zona 7 | C98: Zona 7 | D98: 77 | E98: Firme | F98: 1.34668
A99: 7 | B99: Zona 7 | C99: Zona 8 | D99: 78 | E99: Firme | F99: 3.58899
A100: 7 | B100: Zona 7 | C100: Zona 9 | D100: 79 | E100: Firme | F100: Sin tarifa
A101: 7 | B101: Zona 7 | C101: Zona 1 | D101: 71 | E101: Interrumpible | F101: Sin tarifa
A102: 7 | B102: Zona 7 | C102: Zona 2 | D102: 72 | E102: Interrumpible | F102: Sin tarifa
A103: 7 | B103: Zona 7 | C103: Zona 3 | D103: 73 | E103: Interrumpible | F103: Sin tarifa
A104: 7 | B104: Zona 7 | C104: Zona 4 | D104: 74 | E104: Interrumpible | F104: 11.37907
A105: 7 | B105: Zona 7 | C105: Zona 5 | D105: 75 | E105: Interrumpible | F105: 7.87697
A106: 7 | B106: Zona 7 | C106: Zona 6 | D106: 76 | E106: Interrumpible | F106: 11.2508
A107: 7 | B107: Zona 7 | C107: Zona 7 | D107: 77 | E107: Interrumpible | F107: 1.33322
A108: 7 | B108: Zona 7 | C108: Zona 8 | D108: 78 | E108: Interrumpible | F108: 3.5531
A109: 7 | B109: Zona 7 | C109: Zona 9 | D109: 79 | E109: Interrumpible | F109: Sin tarifa
A110: 8 | B110: Zona 8 | C110: Zona 1 | D110: 81 | E110: Firme | F110: Sin tarifa
A111: 8 | B111: Zona 8 | C111: Zona 2 | D111: 82 | E111: Firme | F111: Sin tarifa
A112: 8 | B112: Zona 8 | C112: Zona 3 | D112: 83 | E112: Firme | F112: Sin tarifa
A113: 8 | B113: Zona 8 | C113: Zona 4 | D113: 84 | E113: Firme | F113: Sin tarifa
A114: 8 | B114: Zona 8 | C114: Zona 5 | D114: 85 | E114: Firme | F114: 10.19884
A115: 8 | B115: Zona 8 | C115: Zona 6 | D115: 86 | E115: Firme | F115: 13.60675
A116: 8 | B116: Zona 8 | C116: Zona 7 | D116: 87 | E116: Firme | F116: 3.58899
A117: 8 | B117: Zona 8 | C117: Zona 8 | D117: 88 | E117: Firme | F117: 1.43372
A118: 8 | B118: Zona 8 | C118: Zona 9 | D118: 89 | E118: Firme | F118: 13.93499
A119: 8 | B119: Zona 8 | C119: Zona 1 | D119: 81 | E119: Interrumpible | F119: Sin tarifa
A120: 8 | B120: Zona 8 | C120: Zona 2 | D120: 82 | E120: Interrumpible | F120: Sin tarifa
A121: 8 | B121: Zona 8 | C121: Zona 3 | D121: 83 | E121: Interrumpible | F121: Sin tarifa
A122: 8 | B122: Zona 8 | C122: Zona 4 | D122: 84 | E122: Interrumpible | F122: Sin tarifa
A123: 8 | B123: Zona 8 | C123: Zona 5 | D123: 85 | E123: Interrumpible | F123: 10.09685
A124: 8 | B124: Zona 8 | C124: Zona 6 | D124: 86 | E124: Interrumpible | F124: 13.47068
A125: 8 | B125: Zona 8 | C125: Zona 7 | D125: 87 | E125: Interrumpible | F125: 3.5531
A126: 8 | B126: Zona 8 | C126: Zona 8 | D126: 88 | E126: Interrumpible | F126: 1.41939
A127: 8 | B127: Zona 8 | C127: Zona 9 | D127: 89 | E127: Interrumpible | F127: 13.79564

Sheet Listas (hidden)
B1: Fecha | C1: Combustible | D1: Unidades | E1: Unidad de tiempo | F1: Regiones inyección | G1: Regiones extracción | I1: Abreviatura_formulada | J1: Abreviatura | K1: Estado
B2: 2023-02-01 | C2: Combustoleo | D2: Pesos/Litro | E2: Día | F2: Región I | G2: Región I | I2: Gto | J2: Ags | K2: Aguascalientes
B3: 2023-03-01 | C3: Diésel | D3: Pesos/Kilo | E3: Semana | F3: Región II | G3: Región II | J3: B.C. | K3: Baja California
B4: 2023-04-01 | C4: Gas Lp Kg | E4: Quincena | F4: Región III | G4: Región III | J4: B.C.S. | K4: Baja California Sur
B5: 2023-05-01 | C5: Gas Lp Lt | E5: Mes | F5: Región IV | G5: Región IV | J5: Camp | K5: Campeche
C6: Magna | E6: Año | F6: Región V | G6: Región V | J6: Chis | K6: Chiapas
C7: Premium | F7: Región VI | G7: Región VI | J7: Chih | K7: Chihuahua
J8: Cdmx | K8: Ciudad de México
J9: Coah | K9: Coahuila
J10: Col | K10: Colima
J11: Dgo | K11: Durango
J12: Gto | K12: Guanajuato
J13: Gro | K13: Guerrero
J14: Hgo | K14: Hidalgo
J15: Jal | K15: Jalisco
J16: Mex | K16: Estado de México
J17: Mich | K17: Michoacán
J18: Mor | K18: Morelos
J19: Nay | K19: Nayarit
J20: N.L. | K20: Nuevo León
J21: Oax | K21: Oaxaca
J22: Pue | K22: Puebla
J23: Qro | K23: Querétaro
J24: Qroo | K24: Quintana Roo
J25: Slp | K25: San Luis Potosí
J26: Sin | K26: Sinaloa
J27: Son | K27: Sonora
J28: Tab | K28: Tabasco
J29: Tamps | K29: Tamaulipas
J30: Tlax | K30: Tlaxcala
J31: Ver | K31: Veracruz
J32: Yuc | K32: Yucatán
J33: Zac | K33: Zacatecas

Sheet Datos y cálculos (hidden)
A1: Combustible | B1: GJ | C1: MMBtu | D1: unidad
A2: gas natural | B2: 0.03172 | C2: 0.03006475 | D2: litros
A3: Diésel | B3: 0.03697402 | C3: 0.03900966 | D3: litros
A4: Gas Lp Kg | B4: 0.04744390244 | C4: 0.05005597182 | D4: kilos
A5: Gas Lp Lt | B5: 0.02555518453 | C5: 0.02696214964 | D5: litros
A6: Combustoleo | B6: 0.04007867 | C6: 0.04228524 | D6: litros
A7: Premium | B7: 0.03697402 | C7: 0.03374483 | D7: litros
A8: Magna | B8: 0.03697402 | C8: 0.03374483 | D8: litros
A9: carbon | B9: 19.518536 | D9: toneladas
A14: Gas Lp Kg | D14: kilos
A15: Gas Lp Lt | B15: 0.09726 | C15: 0.09218468 | D15: litros

Sheet Precios_ (hidden)
A1: Fecha | B1: Estado | C1: Combustible | D1: Precio | E1: Tipodecambio | F1: Unidad | G1: Región
A2: 2023-02-01 | B2: Aguascalientes | C2: Magna | D2: 21.58579302 | E2: 18.6418 | F2: Lt | G2: Región IV
A3: 2023-02-01 | B3: Baja California | C3: Magna | D3: 21.06894615 | E3: 18.6418 | F3: Lt | G3: Región I
A4: 2023-02-01 | B4: Baja California Sur | C4: Magna | D4: 22.97238999 | E4: 18.6418 | F4: Lt | G4: NA
A5: 2023-02-01 | B5: Campeche | C5: Magna | D5: 23.00664309 | E5: 18.6418 | F5: Lt | G5: Región VI
A6: 2023-02-01 | B6: Chiapas | C6: Magna | D6: 21.85271674 | E6: 18.6418 | F6: Lt | G6: Región VI
A7: 2023-02-01 | B7: Chihuahua | C7: Magna | D7: 19.76244018 | E7: 18.6418 | F7: Lt | G7: Región II
A8: 2023-02-01 | B8: Ciudad de México | C8: Magna | D8: 22.36656991 | E8: 18.6418 | F8: Lt | G8: Región V
A9: 2023-02-01 | B9: Coahuila | C9: Magna | D9: 21.10058107 | E9: 18.6418 | F9: Lt | G9: Región II
A10: 2023-02-01 | B10: Colima | C10: Magna | D10: 22.16154201 | E10: 18.6418 | F10: Lt | G10: Región IV
A11: 2023-02-01 | B11: Durango | C11: Magna | D11: 22.06344738 | E11: 18.6418 | F11: Lt | G11: Región II
A12: 2023-02-01 | B12: Guanajuato | C12: Magna | D12: 22.04690832 | E12: 18.6418 | F12: Lt | G12: Región V
A13: 2023-02-01 | B13: Guerrero | C13: Magna | D13: 23.30381868 | E13: 18.6418 | F13: Lt | G13: Región V
A14: 2023-02-01 | B14: Hidalgo | C14: Magna | D14: 21.36305208 | E14: 18.6418 | F14: Lt | G14: Región V
A15: 2023-02-01 | B15: Jalisco | C15: Magna | D15: 22.39287792 | E15: 18.6418 | F15: Lt | G15: Región IV
A16: 2023-02-01 | B16: Estado de México | C16: Magna | D16: 21.73905471 | E16: 18.6418 | F16: Lt | G16: Región V
A17: 2023-02-01 | B17: Michoacán | C17: Magna | D17: 22.45209424 | E17: 18.6418 | F17: Lt | G17: Región V
A18: 2023-02-01 | B18: Morelos | C18: Magna | D18: 21.54171036 | E18: 18.6418 | F18: Lt | G18: Región V
A19: 2023-02-01 | B19: Nayarit | C19: Magna | D19: 22.65384344 | E19: 18.6418 | F19: Lt | G19: NA
A20: 2023-02-01 | B20: Nuevo León | C20: Magna | D20: 23.16743978 | E20: 18.6418 | F20: Lt | G20: Región III
A21: 2023-02-01 | B21: Oaxaca | C21: Magna | D21: 22.88805484 | E21: 18.6418 | F21: Lt | G21: Región VI
A22: 2023-02-01 | B22: Puebla | C22: Magna | D22: 21.40752333 | E22: 18.6418 | F22: Lt | G22: Región V
A23: 2023-02-01 | B23: Querétaro | C23: Magna | D23: 21.05664153 | E23: 18.6418 | F23: Lt | G23: Región V
A24: 2023-02-01 | B24: Quintana Roo | C24: Magna | D24: 23.32715135 | E24: 18.6418 | F24: Lt | G24: Región VI
A25: 2023-02-01 | B25: San Luis Potosí | C25: Magna | D25: 22.18718186 | E25: 18.6418 | F25: Lt | G25: Región V
A26: 2023-02-01 | B26: Sinaloa | C26: Magna | D26: 22.13706368 | E26: 18.6418 | F26: Lt | G26: Región I
A27: 2023-02-01 | B27: Sonora | C27: Magna | D27: 21.63766564 | E27: 18.6418 | F27: Lt | G27: Región I
A28: 2023-02-01 | B28: Tabasco | C28: Magna | D28: 21.60800211 | E28: 18.6418 | F28: Lt | G28: Región VI
A29: 2023-02-01 | B29: Tamaulipas | C29: Magna | D29: 18.8212612 | E29: 18.6418 | F29: Lt | G29: Región III
A30: 2023-02-01 | B30: Tlaxcala | C30: Magna | D30: 21.4040514 | E30: 18.6418 | F30: Lt | G30: Región V
A31: 2023-02-01 | B31: Veracruz | C31: Magna | D31: 21.56094541 | E31: 18.6418 | F31: Lt | G31: Región VI
A32: 2023-02-01 | B32: Yucatán | C32: Magna | D32: 22.4647652 | E32: 18.6418 | F32: Lt | G32: Región VI
A33: 2023-02-01 | B33: Zacatecas | C33: Magna | D33: 22.09701928 | E33: 18.6418 | F33: Lt | G33: Región IV
A34: 2023-02-01 | B34: Aguascalientes | C34: Premium | D34: 17.98770203 | E34: 18.6418 | F34: Lt | G34: Región IV
A35: 2023-02-01 | B35: Baja California | C35: Premium | D35: 17.81386138 | E35: 18.6418 | F35: Lt | G35: Región I
A36: 2023-02-01 | B36: Baja California Sur | C36: Premium | D36: 17.81408957 | E36: 18.6418 | F36: Lt | G36: NA
A37: 2023-02-01 | B37: Campeche | C37: Premium | D37: 17.42137777 | E37: 18.6418 | F37: Lt | G37: Región VI
A38: 2023-02-01 | B38: Chiapas | C38: Premium | D38: 17.62810738 | E38: 18.6418 | F38: Lt | G38: Región VI
A39: 2023-02-01 | B39: Chihuahua | C39: Premium | D39: 16.44750878 | E39: 18.6418 | F39: Lt | G39: Región II
A40: 2023-02-01 | B40: Ciudad de México | C40: Premium | D40: 18.17481849 | E40: 18.6418 | F40: Lt | G40: Región V
A41: 2023-02-01 | B41: Coahuila | C41: Premium | D41: 17.67171677 | E41: 18.6418 | F41: Lt | G41: Región II
A42: 2023-02-01 | B42: Colima | C42: Premium | D42: 17.78112304 | E42: 18.6418 | F42: Lt | G42: Región IV
A43: 2023-02-01 | B43: Durango | C43: Premium | D43: 17.98019523 | E43: 18.6418 | F43: Lt | G43: Región II
A44: 2023-02-01 | B44: Guanajuato | C44: Premium | D44: 17.8476545 | E44: 18.6418 | F44: Lt | G44: Región V
A45: 2023-02-01 | B45: Guerrero | C45: Premium | D45: 17.79408423 | E45: 18.6418 | F45: Lt | G45: Región V
A46: 2023-02-01 | B46: Hidalgo | C46: Premium | D46: 17.68693497 | E46: 18.6418 | F46: Lt | G46: Región V
A47: 2023-02-01 | B47: Jalisco | C47: Premium | D47: 18.29275129 | E47: 18.6418 | F47: Lt | G47: Región IV
A48: 2023-02-01 | B48: Estado de México | C48: Premium | D48: 17.95580146 | E48: 18.6418 | F48: Lt | G48: Región V
A49: 2023-02-01 | B49: Michoacán | C49: Premium | D49: 18.01094207 | E49: 18.6418 | F49: Lt | G49: Región V
A50: 2023-02-01 | B50: Morelos | C50: Premium | D50: 17.63102083 | E50: 18.6418 | F50: Lt | G50: Región V
A51: 2023-02-01 | B51: Nayarit | C51: Premium | D51: 18.06116897 | E51: 18.6418 | F51: Lt | G51: NA
A52: 2023-02-01 | B52: Nuevo León | C52: Premium | D52: 18.14163122 | E52: 18.6418 | F52: Lt | G52: Región III
A53: 2023-02-01 | B53: Oaxaca | C53: Premium | D53: 17.64301702 | E53: 18.6418 | F53: Lt | G53: Región VI
A54: 2023-02-01 | B54: Puebla | C54: Premium | D54: 17.66242383 | E54: 18.6418 | F54: Lt | G54: Región V
A55: 2023-02-01 | B55: Querétaro | C55: Premium | D55: 17.78212164 | E55: 18.6418 | F55: Lt | G55: Región V
A56: 2023-02-01 | B56: Quintana Roo | C56: Premium | D56: 17.64545192 | E56: 18.6418 | F56: Lt | G56: Región VI
A57: 2023-02-01 | B57: San Luis Potosí | C57: Premium | D57: 17.64765389 | E57: 18.6418 | F57: Lt | G57: Región V
A58: 2023-02-01 | B58: Sinaloa | C58: Premium | D58: 17.86804812 | E58: 18.6418 | F58: Lt | G58: Región I
A59: 2023-02-01 | B59: Sonora | C59: Premium | D59: 17.96577399 | E59: 18.6418 | F59: Lt | G59: Región I
A60: 2023-02-01 | B60: Tabasco | C60: Premium | D60: 17.34954088 | E60: 18.6418 | F60: Lt | G60: Región VI
A61: 2023-02-01 | B61: Tamaulipas | C61: Premium | D61: 17.09410661 | E61: 18.6418 | F61: Lt | G61: Región III
A62: 2023-02-01 | B62: Tlaxcala | C62: Premium | D62: 17.60311259 | E62: 18.6418 | F62: Lt | G62: Región V
A63: 2023-02-01 | B63: Veracruz | C63: Premium | D63: 17.31343825 | E63: 18.6418 | F63: Lt | G63: Región VI
A64: 2023-02-01 | B64: Yucatán | C64: Premium | D64: 17.18461235 | E64: 18.6418 | F64: Lt | G64: Región VI
A65: 2023-02-01 | B65: Zacatecas | C65: Premium | D65: 18.04040533 | E65: 18.6418 | F65: Lt | G65: Región IV
A66: 2023-03-01 | B66: Aguascalientes | C66: Magna | D66: 21.63163384 | E66: 18.403 | F66: Lt | G66: Región IV
A67: 2023-03-01 | B67: Baja California | C67: Magna | D67: 21.17047253 | E67: 18.403 | F67: Lt | G67: Región I
A68: 2023-03-01 | B68: Baja California Sur | C68: Magna | D68: 23.05046025 | E68: 18.403 | F68: Lt | G68: NA
A69: 2023-03-01 | B69: Campeche | C69: Magna | D69: 22.98212059 | E69: 18.403 | F69: Lt | G69: Región VI
A70: 2023-03-01 | B70: Chiapas | C70: Magna | D70: 21.82306331 | E70: 18.403 | F70: Lt | G70: Región VI
A71: 2023-03-01 | B71: Chihuahua | C71: Magna | D71: 19.74987722 | E71: 18.403 | F71: Lt | G71: Región II
A72: 2023-03-01 | B72: Ciudad de México | C72: Magna | D72: 22.54994023 | E72: 18.403 | F72: Lt | G72: Región V
A73: 2023-03-01 | B73: Coahuila | C73: Magna | D73: 21.39702586 | E73: 18.403 | F73: Lt | G73: Región II
A74: 2023-03-01 | B74: Colima | C74: Magna | D74: 22.25324834 | E74: 18.403 | F74: Lt | G74: Región IV
A75: 2023-03-01 | B75: Durango | C75: Magna | D75: 22.278223 | E75: 18.403 | F75: Lt | G75: Región II
A76: 2023-03-01 | B76: Guanajuato | C76: Magna | D76: 22.05083839 | E76: 18.403 | F76: Lt | G76: Región V
A77: 2023-03-01 | B77: Guerrero | C77: Magna | D77: 23.3913661 | E77: 18.403 | F77: Lt | G77: Región V
A78: 2023-03-01 | B78: Hidalgo | C78: Magna | D78: 21.44837206 | E78: 18.403 | F78: Lt | G78: Región V
A79: 2023-03-01 | B79: Jalisco | C79: Magna | D79: 22.52375068 | E79: 18.403 | F79: Lt | G79: Región IV
A80: 2023-03-01 | B80: Estado de México | C80: Magna | D80: 21.88590746 | E80: 18.403 | F80: Lt | G80: Región V
A81: 2023-03-01 | B81: Michoacán | C81: Magna | D81: 22.47358462 | E81: 18.403 | F81: Lt | G81: Región V
A82: 2023-03-01 | B82: Morelos | C82: Magna | D82: 21.6254731 | E82: 18.403 | F82: Lt | G82: Región V
A83: 2023-03-01 | B83: Nayarit | C83: Magna | D83: 22.62043527 | E83: 18.403 | F83: Lt | G83: NA
A84: 2023-03-01 | B84: Nuevo León | C84: Magna | D84: 23.32633431 | E84: 18.403 | F84: Lt | G84: Región III
A85: 2023-03-01 | B85: Oaxaca | C85: Magna | D85: 22.82293582 | E85: 18.403 | F85: Lt | G85: Región VI
A86: 2023-03-01 | B86: Puebla | C86: Magna | D86: 21.45910786 | E86: 18.403 | F86: Lt | G86: Región V
A87: 2023-03-01 | B87: Querétaro | C87: Magna | D87: 21.13967575 | E87: 18.403 | F87: Lt | G87: Región V
A88: 2023-03-01 | B88: Quintana Roo | C88: Magna | D88: 23.38915977 | E88: 18.403 | F88: Lt | G88: Región VI
A89: 2023-03-01 | B89: San Luis Potosí | C89: Magna | D89: 22.13230039 | E89: 18.403 | F89: Lt | G89: Región V
A90: 2023-03-01 | B90: Sinaloa | C90: Magna | D90: 22.34464804 | E90: 18.403 | F90: Lt | G90: Región I
A91: 2023-03-01 | B91: Sonora | C91: Magna | D91: 21.26702407 | E91: 18.403 | F91: Lt | G91: Región I
A92: 2023-03-01 | B92: Tabasco | C92: Magna | D92: 21.62161176 | E92: 18.403 | F92: Lt | G92: Región VI
A93: 2023-03-01 | B93: Tamaulipas | C93: Magna | D93: 19.10373206 | E93: 18.403 | F93: Lt | G93: Región III
A94: 2023-03-01 | B94: Tlaxcala | C94: Magna | D94: 21.46057043 | E94: 18.403 | F94: Lt | G94: Región V
A95: 2023-03-01 | B95: Veracruz | C95: Magna | D95: 21.60394894 | E95: 18.403 | F95: Lt | G95: Región VI
A96: 2023-03-01 | B96: Yucatán | C96: Magna | D96: 22.52398996 | E96: 18.403 | F96: Lt | G96: Región VI
A97: 2023-03-01 | B97: Zacatecas | C97: Magna | D97: 22.15625961 | E97: 18.403 | F97: Lt | G97: Región IV
A98: 2023-03-01 | B98: Aguascalientes | C98: Premium | D98: 17.86169801 | E98: 18.403 | F98: Lt | G98: Región IV
A99: 2023-03-01 | B99: Baja California | C99: Premium | D99: 17.61261438 | E99: 18.403 | F99: Lt | G99: Región I
A100: 2023-03-01 | B100: Baja California Sur | C100: Premium | D100: 17.7342264 | E100: 18.403 | F100: Lt | G100: NA
A101: 2023-03-01 | B101: Campeche | C101: Premium | D101: 17.32696305 | E101: 18.403 | F101: Lt | G101: Región VI
A102: 2023-03-01 | B102: Chiapas | C102: Premium | D102: 17.52170626 | E102: 18.403 | F102: Lt | G102: Región VI
A103: 2023-03-01 | B103: Chihuahua | C103: Premium | D103: 17.01227782 | E103: 18.403 | F103: Lt | G103: Región II
A104: 2023-03-01 | B104: Ciudad de México | C104: Premium | D104: 18.075068 | E104: 18.403 | F104: Lt | G104: Región V
A105: 2023-03-01 | B105: Coahuila | C105: Premium | D105: 17.56206029 | E105: 18.403 | F105: Lt | G105: Región II
A106: 2023-03-01 | B106: Colima | C106: Premium | D106: 17.70475918 | E106: 18.403 | F106: Lt | G106: Región IV
A107: 2023-03-01 | B107: Durango | C107: Premium | D107: 17.90969856 | E107: 18.403 | F107: Lt | G107: Región II
A108: 2023-03-01 | B108: Guanajuato | C108: Premium | D108: 17.76644216 | E108: 18.403 | F108: Lt | G108: Región V
A109: 2023-03-01 | B109: Guerrero | C109: Premium | D109: 17.73426008 | E109: 18.403 | F109: Lt | G109: Región V
A110: 2023-03-01 | B110: Hidalgo | C110: Premium | D110: 17.52949734 | E110: 18.403 | F110: Lt | G110: Región V
A111: 2023-03-01 | B111: Jalisco | C111: Premium | D111: 18.20490514 | E111: 18.403 | F111: Lt | G111: Región IV
A112: 2023-03-01 | B112: Estado de México | C112: Premium | D112: 17.88017823 | E112: 18.403 | F112: Lt | G112: Región V
A113: 2023-03-01 | B113: Michoacán | C113: Premium | D113: 17.89655299 | E113: 18.403 | F113: Lt | G113: Región V
A114: 2023-03-01 | B114: Morelos | C114: Premium | D114: 17.57532566 | E114: 18.403 | F114: Lt | G114: Región V
A115: 2023-03-01 | B115: Nayarit | C115: Premium | D115: 17.99382875 | E115: 18.403 | F115: Lt | G115: NA
A116: 2023-03-01 | B116: Nuevo León | C116: Premium | D116: 18.05977304 | E116: 18.403 | F116: Lt | G116: Región III
A117: 2023-03-01 | B117: Oaxaca | C117: Premium | D117: 17.5334295 | E117: 18.403 | F117: Lt | G117: Región VI
A118: 2023-03-01 | B118: Puebla | C118: Premium | D118: 17.5187212 | E118: 18.403 | F118: Lt | G118: Región V
A119: 2023-03-01 | B119: Querétaro | C119: Premium | D119: 17.70486942 | E119: 18.403 | F119: Lt | G119: Región V
A120: 2023-03-01 | B120: Quintana Roo | C120: Premium | D120: 17.55526004 | E120: 18.403 | F120: Lt | G120: Región VI
A121: 2023-03-01 | B121: San Luis Potosí | C121: Premium | D121: 17.59185383 | E121: 18.403 | F121: Lt | G121: Región V
A122: 2023-03-01 | B122: Sinaloa | C122: Premium | D122: 17.78408433 | E122: 18.403 | F122: Lt | G122: Región I
A123: 2023-03-01 | B123: Sonora | C123: Premium | D123: 17.61680972 | E123: 18.403 | F123: Lt | G123: Región I
A124: 2023-03-01 | B124: Tabasco | C124: Premium | D124: 17.25792585 | E124: 18.403 | F124: Lt | G124: Región VI
A125: 2023-03-01 | B125: Tamaulipas | C125: Premium | D125: 16.46119533 | E125: 18.403 | F125: Lt | G125: Región III
A126: 2023-03-01 | B126: Tlaxcala | C126: Premium | D126: 17.45806965 | E126: 18.403 | F126: Lt | G126: Región V
A127: 2023-03-01 | B127: Veracruz | C127: Premium | D127: 17.19872233 | E127: 18.403 | F127: Lt | G127: Región VI
A128: 2023-03-01 | B128: Yucatán | C128: Premium | D128: 17.09971812 | E128: 18.403 | F128: Lt | G128: Región VI
A129: 2023-03-01 | B129: Zacatecas | C129: Premium | D129: 17.8847593 | E129: 18.403 | F129: Lt | G129: Región IV
A130: 2023-02-01 | B130: Aguascalientes | C130: Diésel | D130: 17.31271123 | E130: 18.403 | F130: Lt | G130: Región IV
A131: 2023-02-01 | B131: Baja California | C131: Diésel | D131: 17.19869142 | E131: 18.403 | F131: Lt | G131: Región I
A132: 2023-02-01 | B132: Baja California Sur | C132: Diésel | D132: 17.18428466 | E132: 18.403 | F132: Lt | G132: NA
A133: 2023-02-01 | B133: Campeche | C133: Diésel | D133: 16.72265928 | E133: 18.403 | F133: Lt | G133: Región VI
A134: 2023-02-01 | B134: Chiapas | C134: Diésel | D134: 16.93078159 | E134: 18.403 | F134: Lt | G134: Región VI
A135: 2023-02-01 | B135: Chihuahua | C135: Diésel | D135: 17.36233235 | E135: 18.403 | F135: Lt | G135: Región II
A136: 2023-02-01 | B136: Ciudad de México | C136: Diésel | D136: 17.04837033 | E136: 18.403 | F136: Lt | G136: Región V
A137: 2023-02-01 | B137: Coahuila | C137: Diésel | D137: 17.1804863 | E137: 18.403 | F137: Lt | G137: Región II
A138: 2023-02-01 | B138: Colima | C138: Diésel | D138: 17.10585322 | E138: 18.403 | F138: Lt | G138: Región IV
A139: 2023-02-01 | B139: Durango | C139: Diésel | D139: 17.27510206 | E139: 18.403 | F139: Lt | G139: Región II
A140: 2023-02-01 | B140: Guanajuato | C140: Diésel | D140: 17.15424368 | E140: 18.403 | F140: Lt | G140: Región V
A141: 2023-02-01 | B141: Guerrero | C141: Diésel | D141: 17.13171129 | E141: 18.403 | F141: Lt | G141: Región V
A142: 2023-02-01 | B142: Hidalgo | C142: Diésel | D142: 17.04478484 | E142: 18.403 | F142: Lt | G142: Región V
A143: 2023-02-01 | B143: Jalisco | C143: Diésel | D143: 17.28846274 | E143: 18.403 | F143: Lt | G143: Región IV
A144: 2023-02-01 | B144: Estado de México | C144: Diésel | D144: 17.02622771 | E144: 18.403 | F144: Lt | G144: Región V
A145: 2023-02-01 | B145: Michoacán | C145: Diésel | D145: 17.3125898 | E145: 18.403 | F145: Lt | G145: Región V
A146: 2023-02-01 | B146: Morelos | C146: Diésel | D146: 16.96314492 | E146: 18.403 | F146: Lt | G146: Región V
A147: 2023-02-01 | B147: Nayarit | C147: Diésel | D147: 17.40493051 | E147: 18.403 | F147: Lt | G147: NA
A148: 2023-02-01 | B148: Nuevo León | C148: Diésel | D148: 17.10029472 | E148: 18.403 | F148: Lt | G148: Región III
A149: 2023-02-01 | B149: Oaxaca | C149: Diésel | D149: 16.9488659 | E149: 18.403 | F149: Lt | G149: Región VI
A150: 2023-02-01 | B150: Puebla | C150: Diésel | D150: 16.97228782 | E150: 18.403 | F150: Lt | G150: Región V
A151: 2023-02-01 | B151: Querétaro | C151: Diésel | D151: 17.10133939 | E151: 18.403 | F151: Lt | G151: Región V
A152: 2023-02-01 | B152: Quintana Roo | C152: Diésel | D152: 16.94569286 | E152: 18.403 | F152: Lt | G152: Región VI
A153: 2023-02-01 | B153: San Luis Potosí | C153: Diésel | D153: 16.90211566 | E153: 18.403 | F153: Lt | G153: Región V
A154: 2023-02-01 | B154: Sinaloa | C154: Diésel | D154: 17.23014026 | E154: 18.403 | F154: Lt | G154: Región I
A155: 2023-02-01 | B155: Sonora | C155: Diésel | D155: 17.29504278 | E155: 18.403 | F155: Lt | G155: Región I
A156: 2023-02-01 | B156: Tabasco | C156: Diésel | D156: 16.64751063 | E156: 18.403 | F156: Lt | G156: Región VI
A157: 2023-02-01 | B157: Tamaulipas | C157: Diésel | D157: 16.94003391 | E157: 18.403 | F157: Lt | G157: Región III
A158: 2023-02-01 | B158: Tlaxcala | C158: Diésel | D158: 16.8988536 | E158: 18.403 | F158: Lt | G158: Región V
A159: 2023-02-01 | B159: Veracruz | C159: Diésel | D159: 16.64950434 | E159: 18.403 | F159: Lt | G159: Región VI
A160: 2023-02-01 | B160: Yucatán | C160: Diésel | D160: 16.48781993 | E160: 18.403 | F160: Lt | G160: Región VI
A161: 2023-02-01 | B161: Zacatecas | C161: Diésel | D161: 17.30779211 | E161: 18.403 | F161: Lt | G161: Región IV
A162: 2023-03-01 | B162: Aguascalientes | C162: Diésel | D162: 17.16095597 | E162: 18.403 | F162: Lt | G162: Región IV
A163: 2023-03-01 | B163: Baja California | C163: Diésel | D163: 17.10114288 | E163: 18.403 | F163: Lt | G163: Región I
A164: 2023-03-01 | B164: Baja California Sur | C164: Diésel | D164: 17.05453558 | E164: 18.403 | F164: Lt | G164: NA
A165: 2023-03-01 | B165: Campeche | C165: Diésel | D165: 16.60315513 | E165: 18.403 | F165: Lt | G165: Región VI
A166: 2023-03-01 | B166: Chiapas | C166: Diésel | D166: 16.80076296 | E166: 18.403 | F166: Lt | G166: Región VI
A167: 2023-03-01 | B167: Chihuahua | C167: Diésel | D167: 17.28526387 | E167: 18.403 | F167: Lt | G167: Región II
A168: 2023-03-01 | B168: Ciudad de México | C168: Diésel | D168: 16.9293922 | E168: 18.403 | F168: Lt | G168: Región V
A169: 2023-03-01 | B169: Coahuila | C169: Diésel | D169: 17.07132966 | E169: 18.403 | F169: Lt | G169: Región II
A170: 2023-03-01 | B170: Colima | C170: Diésel | D170: 16.98379244 | E170: 18.403 | F170: Lt | G170: Región IV
A171: 2023-03-01 | B171: Durango | C171: Diésel | D171: 17.17186695 | E171: 18.403 | F171: Lt | G171: Región II
A172: 2023-03-01 | B172: Guanajuato | C172: Diésel | D172: 17.03904484 | E172: 18.403 | F172: Lt | G172: Región V
A173: 2023-03-01 | B173: Guerrero | C173: Diésel | D173: 17.04046526 | E173: 18.403 | F173: Lt | G173: Región V
A174: 2023-03-01 | B174: Hidalgo | C174: Diésel | D174: 16.85896711 | E174: 18.403 | F174: Lt | G174: Región V
A175: 2023-03-01 | B175: Jalisco | C175: Diésel | D175: 17.16472171 | E175: 18.403 | F175: Lt | G175: Región IV
A176: 2023-03-01 | B176: Estado de México | C176: Diésel | D176: 16.91226121 | E176: 18.403 | F176: Lt | G176: Región V
A177: 2023-03-01 | B177: Michoacán | C177: Diésel | D177: 17.18453606 | E177: 18.403 | F177: Lt | G177: Región V
A178: 2023-03-01 | B178: Morelos | C178: Diésel | D178: 16.84624457 | E178: 18.403 | F178: Lt | G178: Región V
A179: 2023-03-01 | B179: Nayarit | C179: Diésel | D179: 17.29713114 | E179: 18.403 | F179: Lt | G179: NA
A180: 2023-03-01 | B180: Nuevo León | C180: Diésel | D180: 16.96177434 | E180: 18.403 | F180: Lt | G180: Región III
A181: 2023-03-01 | B181: Oaxaca | C181: Diésel | D181: 16.8157993 | E181: 18.403 | F181: Lt | G181: Región VI
A182: 2023-03-01 | B182: Puebla | C182: Diésel | D182: 16.81939142 | E182: 18.403 | F182: Lt | G182: Región V
A183: 2023-03-01 | B183: Querétaro | C183: Diésel | D183: 16.98926028 | E183: 18.403 | F183: Lt | G183: Región V
A184: 2023-03-01 | B184: Quintana Roo | C184: Diésel | D184: 16.83321583 | E184: 18.403 | F184: Lt | G184: Región VI
A185: 2023-03-01 | B185: San Luis Potosí | C185: Diésel | D185: 16.81253001 | E185: 18.403 | F185: Lt | G185: Región V
A186: 2023-03-01 | B186: Sinaloa | C186: Diésel | D186: 17.0923175 | E186: 18.403 | F186: Lt | G186: Región I
A187: 2023-03-01 | B187: Sonora | C187: Diésel | D187: 17.16447685 | E187: 18.403 | F187: Lt | G187: Región I
A188: 2023-03-01 | B188: Tabasco | C188: Diésel | D188: 16.53127949 | E188: 18.403 | F188: Lt | G188: Región VI
A189: 2023-03-01 | B189: Tamaulipas | C189: Diésel | D189: 16.78722531 | E189: 18.403 | F189: Lt | G189: Región III
A190: 2023-03-01 | B190: Tlaxcala | C190: Diésel | D190: 16.73831599 | E190: 18.403 | F190: Lt | G190: Región V
A191: 2023-03-01 | B191: Veracruz | C191: Diésel | D191: 16.50138082 | E191: 18.403 | F191: Lt | G191: Región VI
A192: 2023-03-01 | B192: Yucatán | C192: Diésel | D192: 16.37999922 | E192: 18.403 | F192: Lt | G192: Región VI
A193: 2023-03-01 | B193: Zacatecas | C193: Diésel | D193: 17.15204543 | E193: 18.403 | F193: Lt | G193: Región IV
A194: 2023-02-01 | B194: Aguascalientes | C194: Usd Mmbtu Ipgn | D194: 3.3124 | E194: 18.403 | F194: Lt | G194: Región IV
A195: 2023-02-01 | B195: Baja California | C195: Usd Mmbtu Ipgn | D195: 4.3124 | E195: 18.403 | F195: Lt | G195: Región I
A196: 2023-02-01 | B196: Baja California Sur | C196: Usd Mmbtu Ipgn | D196: 5.3124 | E196: 18.403 | F196: Lt | G196: NA
A197: 2023-02-01 | B197: Campeche | C197: Usd Mmbtu Ipgn | D197: 6.3124 | E197: 18.403 | F197: Lt | G197: Región VI
A198: 2023-02-01 | B198: Chiapas | C198: Usd Mmbtu Ipgn | D198: 7.3124 | E198: 18.403 | F198: Lt | G198: Región VI
A199: 2023-02-01 | B199: Chihuahua | C199: Usd Mmbtu Ipgn | D199: 8.3124 | E199: 18.403 | F199: Lt | G199: Región II
A200: 2023-02-01 | B200: Ciudad de México | C200: Usd Mmbtu Ipgn | D200: 9.3124 | E200: 18.403 | F200: Lt | G200: Región V
... 825 more rows

Sheet Notas
A1: Centro Nacional de Control del Gas Natural
A2: Unidad de Gestión Técnica y Planeación
A3: Dirección Ejecutiva de Planeación
A5: =UPPER("Vínculos a las fuentes de información") -> VÍNCULOS A LAS FUENTES DE INFORMACIÓN
A7: Gas natural | B7: https://www.cre.gob.mx//IPGN/
A9: Combustóleo | B9: https://www.pemex.com/ri/Publicaciones/Paginas/IndicadoresPetroleros.aspx
A11: Diésel | B11: https://www.gob.mx/cre/articulos/precios-vigentes-de-gasolinas-y-diesel
A13: Gas LP | B13: https://www.gob.mx/cre/documentos/historial-de-precios-promedio-al-publico-de-gas-lp-reportados-por-los-distribuidores?state=published
A15: Premium | B15: https://www.gob.mx/cre/articulos/precios-vigentes-de-gasolinas-y-diesel
A17: Magna | B17: https://www.gob.mx/cre/articulos/precios-vigentes-de-gasolinas-y-diesel
A19: Factores de conversión | B19: https://www.gob.mx/cre/documentos/factores-de-conversion-para-gas-natural
A21: Tarifas | B21: https://boletin-gestor.cenagas.gob.mx/tarifas/tarifasmaximas/2022%20RES_181_2022%20Tarifas%20SISTRANGAS.pdf
A23: Tipo de cambio | B23: https://dof.gob.mx/indicadores.php
